[Event "XII Figueira da Foz Open 2018"]
[Site "Figueira da Foz"]
[Date "2018.10.29"]
[Round "1"]
[White "Garcia Dorado, Alberto"]
[Black "Marcal, Armando Paulo Gomes"]
[Result "1-0"]
[ECO "A49"]
[WhiteElo "2206"]
[BlackElo "1751"]
[Annotator "NA"]
[PlyCount "49"]
[EventDate "2018.10.30"]
[EventType "swiss"]
[EventCountry "POR"]
[SourceTitle "playchess.com"]
[Source "ChessBase"]
[SourceQuality "1"]
[TimeControl "40/5400+30:1800+30"]

1. d4 Nf6 2. Nf3 g6 3. g3 Bg7 4. Bg2 c6 5. O-O O-O 6. c4 d5 7. Nbd2 a5 8. b3 Re8 9. Bb2 Nbd7 10. Qc2 a4 11. e4 dxe4 12. Nxe4 a3 13. Bc3 Nxe4 14. Qxe4 Nf6 15. Qe2 Nd7 16. Rad1 Qc7 17. Rfe1 h5 18. Qe3 Nf6 19. h3 Bf5 20. Ne5 Rad8 21. Qf4 Nd7 22. Nxg6 Qxf4 23. Nxf4 e6 24. Nxh5 Rc8 25. Nxg7 1-0

[Event "XII Figueira da Foz Open 2018"]
[Site "Figueira da Foz"]
[Date "2018.10.29"]
[Round "1"]
[White "Santos, Antonio P"]
[Black "Gama, Joao Goncalo Cereje"]
[Result "1-0"]
[ECO "D96"]
[WhiteElo "2155"]
[BlackElo "1598"]
[Annotator "NA"]
[PlyCount "121"]
[EventDate "2018.10.30"]
[EventType "swiss"]
[EventCountry "POR"]
[SourceTitle "playchess.com"]
[Source "ChessBase"]
[SourceQuality "1"]
[TimeControl "40/5400+30:1800+30"]

1. d4 {[%emt 0:00:00]} Nf6 {[%emt 0:00:00]} 2. c4 {[%emt 0:00:00]} g6 {[%emt 0:00:07]} 3. Nc3 {[%emt 0:00:00]} d5 {[%emt 0:00:45]} 4. Nf3 {[%emt 0:00:05]} Bg7 {[%emt 0:01:20]} 5. Qb3 {[%emt 0:00:13]} c6 {[%emt 0:01:43]} 6. g3 {[%emt 0:02:29]} O-O {[%emt 0:00:37]} 7. Bg2 {[%emt 0:00:09]} e6 {[%emt 0:02:01]} 8. O-O {[%emt 0:00:11]} Nbd7 {[%emt 0:01:33]} 9. Rd1 {[%emt 0:14:50]} dxc4 {[%emt 0:06:33]} 10. Qxc4 {[%emt 0:00:04]} Nb6 {[%emt 0:00:14]} 11. Qb3 {[%emt 0:00:28]} Nbd5 {[%emt 0:02:57]} 12. Ne5 {[%emt 0:04:02]} h6 {[%emt 0:04:15]} 13. e4 {[%emt 0:00:35]} Nxc3 {[%emt 0:00:09]} 14. bxc3 {[%emt 0:00:04]} Qb6 {[%emt 0:02:40]} 15. Qc2 {[%emt 0:04:25]} Rd8 {[%emt 0:01:33]} 16. a4 {[%emt 0:00:50]} a5 {[%emt 0:01:25]} 17. Rb1 {[%emt 0:03:57]} Qc7 {[%emt 0:00:52]} 18. Bf4 {[%emt 0:00:19]} Qe7 {[%emt 0:00:18]} 19. Nc4 {[%emt 0:00:31]} Nh5 {[%emt 0:03:10]} 20. Bc1 {[%emt 0:01:04]} Nf6 {[%emt 0:02:07]} 21. Ba3 {[%emt 0:16:22]} Qe8 {[%emt 0:02:43]} 22. Bc5 {[%emt 0:06:02]} Bf8 {[%emt 0:04:38]} 23. Bb6 {[%emt 0:03:55]} Rd7 {[%emt 0:00:42]} 24. Nxa5 {[%emt 0:00:28]} Be7 {[%emt 0:02:33]} 25. Nc4 {[%emt 0:00:20]} Qf8 {[%emt 0:01:00]} 26. a5 {[%emt 0:00:14]} Bd8 {[%emt 0:00:34]} 27. Ra1 {[%emt 0:04:32]} Qg7 {[%emt 0:01:37]} 28. Ne5 {[%emt 0:05:33]} Bxb6 {[%emt 0:01:21]} 29. axb6 {[%emt 0:00:27]} Rxa1 {[%emt 0:00:17]} 30. Rxa1 {[%emt 0:00:02]} Rd8 {[%emt 0:00:15]} 31. Ra8 {[%emt 0:00:20]} Qf8 {[%emt 0:01:27]} 32. Nc4 {[%emt 0:09:29]} Bd7 {[%emt 0:00:33]} 33. Ra7 {[%emt 0:00:13]} Rb8 {[%emt 0:00:14]} 34. Na5 {[%emt 0:04:41]} Bc8 {[%emt 0:03:32]} 35. Qb2 {[%emt 0:00:37]} c5 {[%emt 0:01:47]} 36. e5 {[%emt 0:07:48]} Nd5 {[%emt 0:00:34]} 37. Bxd5 {[%emt 0:00:08]} exd5 {[%emt 0:00:14]} 38. Qa3 {[%emt 0:00:01]} cxd4 {[%emt 0:00:21]} 39. Qxf8+ {[%emt 0:00:03]} Kxf8 {[%emt 0:00:15]} 40. cxd4 {[%emt 0:00:05]} Ke7 {[%emt 0:00:29]} 41. f4 {[%emt 0:30:21]} Ke6 {[%emt 0:31:14]} 42. Kf2 {[%emt 0:01:16]} f6 {[%emt 0:00:12]} 43. Kf3 {[%emt 0:04:49]} fxe5 {[%emt 0:00:40]} 44. fxe5 {[%emt 0:00:05]} Kf5 {[%emt 0:00:21]} 45. g4+ {[%emt 0:00:25]} Ke6 {[%emt 0:00:14]} 46. Kf4 {[%emt 0:00:18]} g5+ {[%emt 0:00:33]} 47. Ke3 {[%emt 0:00:43]} Kd7 {[%emt 0:00:10]} 48. h3 {[%emt 0:00:07]} Ke6 {[%emt 0:00:09]} 49. Kd2 {[%emt 0:00:09]} Kd7 {[%emt 0:00:22]} 50. Kc3 {[%emt 0:00:03]} Ke6 {[%emt 0:00:21]} 51. Kb4 {[%emt 0:00:02]} Ke7 {[%emt 0:00:09]} 52. Nc6+ {[%emt 0:00:06]} Ke6 {[%emt 0:00:07]} 53. Nxb8 {[%emt 0:00:02]} Ke7 {[%emt 0:00:08]} 54. Nc6+ {[%emt 0:00:14]} Ke6 {[%emt 0:00:04]} 55. Nd8+ {[%emt 0:00:12]} Kd7 {[%emt 0:00:03]} 56. Nxb7 {[%emt 0:00:14]} Bxb7 {[%emt 0:00:08]} 57. Rxb7+ {[%emt 0:00:11]} Ke6 {[%emt 0:00:10]} 58. Ra7 {[%emt 0:00:59]} h5 {[%emt 0:00:22]} 59. b7 {[%emt 0:00:02]} hxg4 {[%emt 0:00:12]} 60. hxg4 {[%emt 0:00:02]} Kd7 {[%emt 0:00:11]} 61. b8=Q+ {[%emt 0:00:13]} 1-0

[Event "XII Figueira da Foz Open 2018"]
[Site "Figueira da Foz"]
[Date "2018.10.29"]
[Round "1"]
[White "Lisowski, Krzysztof"]
[Black "Dong, Fabio"]
[Result "1-0"]
[ECO "B40"]
[WhiteElo "2095"]
[BlackElo "1273"]
[Annotator "NA"]
[PlyCount "49"]
[EventDate "2018.10.30"]
[EventType "swiss"]
[EventCountry "POR"]
[SourceTitle "playchess.com"]
[Source "ChessBase"]
[SourceQuality "1"]
[TimeControl "40/5400+30:1800+30"]

1. e4 {[%emt 0:00:00]} c5 {[%emt 0:00:00]} 2. Nf3 {[%emt 0:00:12]} e6 {[%emt 0:00:00]} 3. b3 {[%emt 0:00:25]} Nc6 {[%emt 0:00:49]} 4. Bb2 {[%emt 0:06:45]} d5 {[%emt 0:05:19]} 5. exd5 {[%emt 0:05:06]} exd5 {[%emt 0:01:12]} 6. Bb5 {[%emt 0:00:36]} Bd7 {[%emt 0:07:01]} 7. O-O {[%emt 0:00:30]} Nf6 {[%emt 0:01:23]} 8. Re1+ {[%emt 0:01:43]} Ne7 {[%emt 0:08:06]} 9. Bxd7+ {[%emt 0:05:27]} Nxd7 {[%emt 0:01:50]} 10. Nc3 {[%emt 0:02:00]} d4 {[%emt 0:03:42]} 11. Ne4 {[%emt 0:00:50]} Qc7 {[%emt 0:05:23]} 12. c3 {[%emt 0:02:07]} dxc3 {[%emt 0:09:31]} 13. dxc3 {[%emt 0:00:49]} O-O-O {[%emt 0:03:04]} 14. Nd6+ {[%emt 0:00:53]} Kb8 {[%emt 0:00:28]} 15. Nxf7 {[%emt 0:01:49]} Rg8 {[%emt 0:02:01]} 16. Nxd8 {[%emt 0:00:38]} Qxd8 {[%emt 0:00:17]} 17. Ne5 {[%emt 0:06:06]} Kc8 {[%emt 0:05:37]} 18. Qg4 {[%emt 0:02:42]} Kc7 {[%emt 0:02:33]} 19. Rad1 {[%emt 0:03:20]} Nxe5 {[%emt 0:01:08]} 20. Rxe5 {[%emt 0:00:25]} Qe8 {[%emt 0:00:59]} 21. Rxc5+ {[%emt 0:02:06]} Kb8 {[%emt 0:00:20]} 22. Re5 {[%emt 0:03:55]} g6 {[%emt 0:02:31]} 23. Rd7 {[%emt 0:04:07]} h5 {[%emt 0:02:18]} 24. Qe6 {[%emt 0:00:25]} Rg7 {[%emt 0:01:26]} 25. Qd6+ {[%emt 0:01:31]} 1-0

[Event "XII Figueira da Foz Open 2018"]
[Site "Figueira da Foz"]
[Date "2018.10.29"]
[Round "1"]
[White "Asvestopoulou, Evdokia"]
[Black "Roettgen, Juergen"]
[Result "0-1"]
[ECO "D16"]
[WhiteElo "1720"]
[BlackElo "2169"]
[Annotator "NA"]
[PlyCount "58"]
[EventDate "2018.10.30"]
[EventType "swiss"]
[EventCountry "POR"]
[SourceTitle "playchess.com"]
[Source "ChessBase"]
[SourceQuality "1"]
[TimeControl "40/5400+30:1800+30"]

1. d4 {[%emt 0:00:00]} d5 {[%emt 0:00:00]} 2. c4 {[%emt 0:00:00]} c6 {[%emt 0:00:00]} 3. Nf3 {[%emt 0:00:18]} Nf6 {[%emt 0:00:09]} 4. Nc3 {[%emt 0:00:47]} dxc4 {[%emt 0:00:29]} 5. a4 {[%emt 0:00:22]} Bg4 {[%emt 0:00:37]} 6. e3 {[%emt 0:08:09]} Nbd7 {[%emt 0:05:37]} 7. Bxc4 {[%emt 0:01:50]} e6 {[%emt 0:00:26]} 8. O-O {[%emt 0:04:28]} Be7 {[%emt 0:06:30]} 9. h3 {[%emt 0:04:43]} Bh5 {[%emt 0:00:37]} 10. Re1 {[%emt 0:06:42]} O-O {[%emt 0:03:42]} 11. e4 {[%emt 0:03:01]} e5 {[%emt 0:04:47]} 12. g4 {[%emt 0:05:46]} exd4 {[%emt 0:01:56]} 13. Nxd4 {[%emt 0:02:35]} Bg6 {[%emt 0:08:37]} 14. Bf4 {[%emt 0:08:51]} Nb6 {[%emt 0:03:40]} 15. Bb3 {[%emt 0:02:52]} Bc5 {[%emt 0:04:39]} 16. Nf5 {[%emt 0:04:44]} Bxf5 {[%emt 0:08:16]} 17. exf5 {[%emt 0:01:04]} Nfd5 {[%emt 0:02:21]} 18. Nxd5 {[%emt 0:05:26]} Nxd5 {[%emt 0:01:37]} 19. Bg3 {[%emt 0:02:20]} Qa5 {[%emt 0:06:12]} 20. Qf3 {[%emt 0:09:58]} Rad8 {[%emt 0:03:58]} 21. g5 {[%emt 0:03:09]} Kh8 {[%emt 0:05:30]} 22. Re4 {[%emt 0:05:03]} f6 {[%emt 0:03:27]} 23. gxf6 {[%emt 0:04:18]} Nxf6 {[%emt 0:02:19]} 24. Rh4 {[%emt 0:02:45]} Qd2 {[%emt 0:04:43]} 25. Be5 {[%emt 0:04:33]} Rd3 {[%emt 0:03:01]} 26. Rd1 {[%emt 0:01:28]} Rxf3 {[%emt 0:03:35]} 27. Rxd2 {[%emt 0:00:18]} Rxb3 {[%emt 0:00:11]} 28. Bxf6 {[%emt 0:00:25]} Rxf6 {[%emt 0:00:44]} 29. Rd8+ {[%emt 0:01:59]} Rf8 0-1

[Event "XII Figueira da Foz Open 2018"]
[Site "Figueira da Foz"]
[Date "2018.10.29"]
[Round "1"]
[White "Moes Joaquim, Carlos"]
[Black "Margarido, Jose Miguel Teixeir"]
[Result "0-1"]
[ECO "E38"]
[WhiteElo "1415"]
[BlackElo "2121"]
[Annotator "NA"]
[PlyCount "58"]
[EventDate "2018.10.30"]
[EventType "swiss"]
[EventCountry "POR"]
[SourceTitle "playchess.com"]
[Source "ChessBase"]
[SourceQuality "1"]
[TimeControl "40/5400+30:1800+30"]

1. d4 {[%emt 0:00:00]} Nf6 {[%emt 0:00:44]} 2. c4 {[%emt 0:00:12]} e6 {[%emt 0:00:08]} 3. Nc3 {[%emt 0:01:14]} Bb4 {[%emt 0:00:05]} 4. Qc2 {[%emt 0:00:46]} c5 {[%emt 0:02:42]} 5. Nf3 {[%emt 0:07:44]} cxd4 {[%emt 0:03:26]} 6. Nxd4 {[%emt 0:00:23]} Nc6 {[%emt 0:00:27]} 7. Nxc6 {[%emt 0:05:03]} bxc6 {[%emt 0:00:35]} 8. a3 {[%emt 0:00:10]} Be7 {[%emt 0:00:41]} 9. e4 {[%emt 0:02:05]} e5 {[%emt 0:04:49]} 10. Bd3 {[%emt 0:00:50]} O-O {[%emt 0:00:42]} 11. O-O {[%emt 0:00:18]} d6 {[%emt 0:01:19]} 12. f4 {[%emt 0:05:21]} Ng4 {[%emt 0:01:47]} 13. Qe2 {[%emt 0:01:39]} exf4 {[%emt 0:02:06]} 14. Bxf4 {[%emt 0:00:38]} Bg5 {[%emt 0:04:11]} 15. Rad1 {[%emt 0:05:38]} Bxf4 {[%emt 0:06:38]} 16. Rxf4 {[%emt 0:02:44]} Ne5 {[%emt 0:01:38]} 17. c5 {[%emt 0:02:28]} Qg5 {[%emt 0:05:33]} 18. Qf1 {[%emt 0:00:18]} Nxd3 {[%emt 0:00:41]} 19. Rxd3 {[%emt 0:00:27]} Ba6 {[%emt 0:06:18]} 20. Rf5 {[%emt 0:02:08]} Bxd3 {[%emt 0:00:50]} 21. Qxd3 {[%emt 0:00:23]} Qc1+ {[%emt 0:00:32]} 22. Nd1 {[%emt 0:00:51]} dxc5 {[%emt 0:00:29]} 23. Rf1 {[%emt 0:01:19]} Rad8 {[%emt 0:00:26]} 24. Qf3 {[%emt 0:02:19]} Qd2 {[%emt 0:01:19]} 25. e5 {[%emt 0:01:00]} Qd4+ {[%emt 0:00:32]} 26. Kh1 {[%emt 0:00:38]} Qxe5 {[%emt 0:00:17]} 27. Qxc6 {[%emt 0:00:16]} Qe2 {[%emt 0:01:30]} 28. Qf3 {[%emt 0:00:10]} Qxf3 {[%emt 0:00:07]} 29. gxf3 {[%emt 0:00:09]} Rd2 {[%emt 0:00:10]} 0-1

[Event "XII Figueira da Foz Open 2018"]
[Site "Figueira da Foz"]
[Date "2018.10.30"]
[Round "2"]
[White "Fernandes, Joao Pedro Murtinho"]
[Black "Pipiras, Filipa Fortuna"]
[Result "1/2-1/2"]
[ECO "C90"]
[WhiteElo "2067"]
[BlackElo "1853"]
[Annotator "NA"]
[PlyCount "53"]
[EventDate "2018.10.30"]
[EventType "swiss"]
[EventCountry "POR"]
[SourceTitle "playchess.com"]
[Source "ChessBase"]
[SourceQuality "1"]
[TimeControl "40/5400+30:1800+30"]

1. e4 {[%emt 0:00:00]} e5 {[%emt 0:08:52]} 2. Nf3 {[%emt 0:00:00]} Nc6 {[%emt 0:00:11]} 3. Bb5 {[%emt 0:00:00]} a6 {[%emt 0:00:40]} 4. Ba4 {[%emt 0:00:00]} Nf6 {[%emt 0:01:09]} 5. O-O {[%emt 0:00:03]} Be7 {[%emt 0:00:15]} 6. Re1 {[%emt 0:00:41]} b5 {[%emt 0:01:34]} 7. Bb3 {[%emt 0:00:04]} O-O {[%emt 0:00:35]} 8. d3 {[%emt 0:00:06]} d6 {[%emt 0:00:41]} 9. c3 {[%emt 0:00:20]} Na5 {[%emt 0:00:52]} 10. Bc2 {[%emt 0:00:10]} c5 {[%emt 0:00:36]} 11. Nbd2 {[%emt 0:00:59]} Nd7 {[%emt 0:02:29]} 12. Nf1 {[%emt 0:05:39]} Nb6 {[%emt 0:01:34]} 13. Ne3 {[%emt 0:04:12]} Re8 {[%emt 0:03:19]} 14. d4 {[%emt 0:04:32]} exd4 {[%emt 0:08:07]} 15. cxd4 {[%emt 0:00:23]} Nc6 {[%emt 0:00:49]} 16. d5 {[%emt 0:13:34]} Nb4 {[%emt 0:03:04]} 17. Bb1 {[%emt 0:00:12]} a5 {[%emt 0:00:48]} 18. a3 {[%emt 0:07:56]} Na6 {[%emt 0:00:37]} 19. e5 {[%emt 0:00:56]} dxe5 {[%emt 0:08:46]} 20. Nxe5 {[%emt 0:00:45]} Bf6 {[%emt 0:03:16]} 21. Bxh7+ {[%emt 0:43:29]} Kxh7 {[%emt 0:07:01]} 22. Qh5+ {[%emt 0:00:15]} Kg8 {[%emt 0:00:31]} 23. Qxf7+ {[%emt 0:00:37]} Kh7 {[%emt 0:01:37]} 24. Qg6+ {[%emt 0:01:30]} Kg8 {[%emt 0:00:55]} 25. Qf7+ {[%emt 0:03:34]} Kh7 {[%emt 0:00:12]} 26. Qh5+ {[%emt 0:00:20]} Kg8 {[%emt 0:00:15]} 27. Qf7+ 1/2-1/2

[Event "XII Figueira da Foz Open 2018"]
[Site "Figueira da Foz"]
[Date "2018.10.30"]
[Round "2"]
[White "Sismeiro, Miguel"]
[Black "Morais, Mario Martins Freit"]
[Result "1/2-1/2"]
[ECO "B39"]
[WhiteElo "2008"]
[BlackElo "1766"]
[Annotator "NA"]
[PlyCount "50"]
[EventDate "2018.10.30"]
[EventType "swiss"]
[EventCountry "POR"]
[SourceTitle "playchess.com"]
[Source "ChessBase"]
[SourceQuality "1"]
[TimeControl "40/5400+30:1800+30"]

1. e4 {[%emt 0:00:00]} c5 {[%emt 0:00:00]} 2. Nf3 {[%emt 0:00:00]} g6 {[%emt 0:01:09]} 3. d4 {[%emt 0:01:20]} cxd4 {[%emt 0:01:17]} 4. Nxd4 {[%emt 0:00:06]} Bg7 {[%emt 0:00:48]} 5. c4 {[%emt 0:00:32]} Nf6 {[%emt 0:00:42]} 6. Nc3 {[%emt 0:01:42]} Nc6 {[%emt 0:02:52]} 7. Be3 {[%emt 0:00:57]} Ng4 {[%emt 0:03:05]} 8. Qxg4 {[%emt 0:00:26]} Nxd4 {[%emt 0:00:19]} 9. Qd1 {[%emt 0:00:06]} e5 {[%emt 0:00:10]} 10. Be2 {[%emt 0:16:46]} a6 {[%emt 0:04:08]} 11. O-O {[%emt 0:03:45]} O-O {[%emt 0:00:23]} 12. Qd2 {[%emt 0:13:58]} d6 {[%emt 0:01:33]} 13. Rfd1 {[%emt 0:08:59]} Be6 {[%emt 0:00:32]} 14. f3 {[%emt 0:05:13]} Rc8 {[%emt 0:03:19]} 15. b3 {[%emt 0:02:35]} b5 {[%emt 0:09:34]} 16. Nd5 {[%emt 0:09:10]} Bxd5 {[%emt 0:03:37]} 17. exd5 {[%emt 0:00:06]} Nxe2+ {[%emt 0:06:52]} 18. Qxe2 {[%emt 0:00:07]} bxc4 {[%emt 0:00:24]} 19. bxc4 {[%emt 0:00:08]} e4 {[%emt 0:01:12]} 20. Rac1 {[%emt 0:00:59]} exf3 {[%emt 0:00:21]} 21. Qxf3 {[%emt 0:00:18]} Re8 {[%emt 0:10:25]} 22. Kh1 {[%emt 0:16:39]} Qe7 {[%emt 0:15:12]} 23. Bf4 {[%emt 0:02:17]} Be5 {[%emt 0:11:26]} 24. Re1 {[%emt 0:03:14]} f6 {[%emt 0:01:46]} 25. Bxe5 {[%emt 0:04:21]} fxe5 1/2-1/2

[Event "XII Figueira da Foz Open 2018"]
[Site "Figueira da Foz"]
[Date "2018.10.30"]
[Round "2"]
[White "Felizes, Paulo"]
[Black "Asvestopoulou, Evdokia"]
[Result "1-0"]
[ECO "A45"]
[WhiteElo "1965"]
[BlackElo "1720"]
[Annotator "NA"]
[PlyCount "79"]
[EventDate "2018.10.30"]
[EventType "swiss"]
[EventCountry "POR"]
[SourceTitle "playchess.com"]
[Source "ChessBase"]
[SourceQuality "1"]
[TimeControl "40/5400+30:1800+30"]

1. d4 {[%emt 0:00:28]} Nf6 {[%emt 0:00:15]} 2. Bg5 {[%emt 0:00:28]} d5 {[%emt 0:03:14]} 3. Nd2 {[%emt 0:01:38]} h6 {[%emt 0:07:22]} 4. Bxf6 {[%emt 0:04:23]} gxf6 {[%emt 0:00:45]} 5. c4 {[%emt 0:02:07]} c5 {[%emt 0:09:52]} 6. cxd5 {[%emt 0:08:59]} Qxd5 {[%emt 0:02:39]} 7. dxc5 {[%emt 0:06:50]} Qxc5 {[%emt 0:09:24]} 8. Rc1 {[%emt 0:01:36]} Qf5 {[%emt 0:00:12]} 9. e4 {[%emt 0:05:11]} Qe6 {[%emt 0:09:12]} 10. Qh5 {[%emt 0:24:40]} Rh7 {[%emt 0:04:05]} 11. Bc4 {[%emt 0:04:43]} Qd7 {[%emt 0:00:40]} 12. Bb5 {[%emt 0:11:34]} Nc6 {[%emt 0:01:01]} 13. Ngf3 {[%emt 0:00:34]} a6 {[%emt 0:08:03]} 14. Ba4 {[%emt 0:02:24]} b5 {[%emt 0:02:08]} 15. Bb3 {[%emt 0:00:41]} Bb7 {[%emt 0:06:26]} 16. O-O {[%emt 0:03:28]} Nd4 {[%emt 0:05:05]} 17. Nxd4 {[%emt 0:03:00]} Qxd4 {[%emt 0:00:02]} 18. Rc7 {[%emt 0:04:57]} Qb6 {[%emt 0:03:04]} 19. Rfc1 {[%emt 0:01:35]} Rd8 {[%emt 0:00:22]} 20. Bd5 {[%emt 0:05:21]} Bxd5 {[%emt 0:02:31]} 21. exd5 {[%emt 0:00:03]} Qd4 {[%emt 0:01:19]} 22. Qf5 {[%emt 0:02:16]} Rg7 {[%emt 0:07:53]} 23. Rc8 {[%emt 0:00:57]} e6 {[%emt 0:02:12]} 24. Rxd8+ {[%emt 0:01:25]} Kxd8 {[%emt 0:01:15]} 25. dxe6 {[%emt 0:01:08]} fxe6 {[%emt 0:02:03]} 26. Qc2 {[%emt 0:01:41]} Ke8 {[%emt 0:01:59]} 27. Qc6+ {[%emt 0:00:43]} Kf7 {[%emt 0:00:10]} 28. Nb3 {[%emt 0:00:13]} Qg4 {[%emt 0:03:59]} 29. Re1 {[%emt 0:00:38]} Be7 {[%emt 0:01:05]} 30. g3 {[%emt 0:00:44]} Rg5 {[%emt 0:02:39]} 31. Kg2 {[%emt 0:00:27]} Rh5 {[%emt 0:01:10]} 32. Re4 {[%emt 0:00:31]} Qh3+ {[%emt 0:02:09]} 33. Kf3 {[%emt 0:00:05]} Qf5+ {[%emt 0:00:23]} 34. Rf4 {[%emt 0:00:39]} Qd3+ {[%emt 0:00:47]} 35. Kg2 {[%emt 0:00:03]} Rd5 {[%emt 0:00:45]} 36. Qxa6 {[%emt 0:00:27]} Rd6 {[%emt 0:00:50]} 37. Qb7 {[%emt 0:00:13]} Rd7 {[%emt 0:00:25]} 38. Qf3 {[%emt 0:00:45]} Qc2 {[%emt 0:00:23]} 39. Qh5+ {[%emt 0:00:17]} Kg7 {[%emt 0:00:15]} 40. Rg4+ {[%emt 0:00:00]} 1-0

[Event "XII Figueira da Foz Open 2018"]
[Site "Figueira da Foz"]
[Date "2018.10.30"]
[Round "2"]
[White "Silva, Pedro Gil Ferreira "]
[Black "Goncalves, Lucas Jordao"]
[Result "1-0"]
[ECO "C45"]
[WhiteElo "1837"]
[BlackElo "1401"]
[Annotator "NA"]
[PlyCount "127"]
[EventDate "2018.10.30"]
[EventType "swiss"]
[EventCountry "POR"]
[SourceTitle "playchess.com"]
[Source "ChessBase"]
[SourceQuality "1"]
[TimeControl "40/5400+30:1800+30"]

1. e4 {[%emt 0:00:00]} e5 {[%emt 0:00:00]} 2. Nf3 {[%emt 0:00:00]} Nc6 {[%emt 0:00:00]} 3. d4 {[%emt 0:00:01]} exd4 {[%emt 0:00:09]} 4. Nxd4 {[%emt 0:00:08]} Bc5 {[%emt 0:00:21]} 5. Nb3 {[%emt 0:00:16]} Bb6 {[%emt 0:00:49]} 6. Nc3 {[%emt 0:00:22]} a6 {[%emt 0:13:11]} 7. Nd5 {[%emt 0:08:09]} d6 {[%emt 0:13:05]} 8. Nxb6 {[%emt 0:01:57]} cxb6 {[%emt 0:00:28]} 9. f3 {[%emt 0:23:45]} Be6 {[%emt 0:01:36]} 10. Nd4 {[%emt 0:04:04]} Bd7 {[%emt 0:02:02]} 11. Bc4 {[%emt 0:03:27]} Nge7 {[%emt 0:02:09]} 12. Be3 {[%emt 0:09:19]} O-O {[%emt 0:00:48]} 13. O-O {[%emt 0:00:25]} Rc8 {[%emt 0:02:37]} 14. Be2 {[%emt 0:05:18]} Re8 {[%emt 0:03:34]} 15. f4 {[%emt 0:08:35]} Nxd4 {[%emt 0:04:31]} 16. Bxd4 {[%emt 0:00:59]} Nc6 {[%emt 0:00:39]} 17. Bf3 {[%emt 0:00:34]} g6 {[%emt 0:08:58]} 18. Bc3 {[%emt 0:01:11]} Be6 {[%emt 0:04:41]} 19. Qd2 {[%emt 0:01:25]} Qc7 {[%emt 0:00:36]} 20. f5 {[%emt 0:00:10]} Bc4 {[%emt 0:00:23]} 21. f6 {[%emt 0:01:35]} Nd8 {[%emt 0:01:30]} 22. Rfd1 {[%emt 0:02:52]} Ne6 {[%emt 0:03:19]} 23. h4 {[%emt 0:09:01]} Rcd8 {[%emt 0:02:27]} 24. h5 {[%emt 0:02:31]} gxh5 {[%emt 0:02:58]} 25. Bb4 {[%emt 0:02:31]} Kh8 {[%emt 0:01:25]} 26. Bxd6 {[%emt 0:00:23]} Qc6 {[%emt 0:00:33]} 27. e5 {[%emt 0:00:47]} Qd7 {[%emt 0:00:17]} 28. Qh6 {[%emt 0:00:23]} Rg8 {[%emt 0:00:54]} 29. Be7 {[%emt 0:00:30]} Qb5 {[%emt 0:01:24]} 30. Bxd8 {[%emt 0:00:28]} Qxe5 {[%emt 0:00:12]} 31. Be7 {[%emt 0:01:02]} Qg3 {[%emt 0:02:14]} 32. Bf8 {[%emt 0:08:12]} Nxf8 {[%emt 0:03:46]} 33. Be4 {[%emt 0:00:54]} Bb5 {[%emt 0:01:37]} 34. Rd8 {[%emt 0:02:32]} Bc6 {[%emt 0:02:40]} 35. Qxf8 {[%emt 0:01:20]} Bxe4 {[%emt 0:00:11]} 36. Qxg8+ {[%emt 0:00:05]} Qxg8 {[%emt 0:00:16]} 37. Rxg8+ {[%emt 0:00:03]} Kxg8 {[%emt 0:00:09]} 38. Re1 {[%emt 0:00:07]} Bc6 {[%emt 0:00:05]} 39. Re5 {[%emt 0:02:19]} h6 {[%emt 0:00:21]} 40. Re7 {[%emt 0:00:00]} Bd5 {[%emt 0:00:00]} 41. Rd7 {[%emt 0:01:08]} Bc6 {[%emt 0:00:40]} 42. Rc7 {[%emt 0:00:38]} b5 {[%emt 0:00:09]} 43. g3 {[%emt 0:00:35]} a5 {[%emt 0:00:21]} 44. a3 {[%emt 0:01:18]} b4 {[%emt 0:00:43]} 45. axb4 {[%emt 0:00:15]} axb4 {[%emt 0:00:05]} 46. c4 {[%emt 0:00:41]} bxc3 {[%emt 0:00:15]} 47. bxc3 {[%emt 0:00:05]} Bd5 {[%emt 0:00:08]} 48. Kf2 {[%emt 0:00:09]} b5 {[%emt 0:00:08]} 49. Ke3 {[%emt 0:00:38]} Kh7 {[%emt 0:00:43]} 50. Kd4 {[%emt 0:01:50]} Bb3 {[%emt 0:00:32]} 51. Ke5 {[%emt 0:00:40]} Kg6 {[%emt 0:00:07]} 52. Rc8 {[%emt 0:00:09]} Kh7 {[%emt 0:00:15]} 53. Kd6 {[%emt 0:00:21]} Kg6 {[%emt 0:00:09]} 54. Ke7 {[%emt 0:00:04]} Bc4 {[%emt 0:00:44]} 55. Rg8+ {[%emt 0:02:15]} Kf5 {[%emt 0:00:52]} 56. Rg7 {[%emt 0:00:04]} h4 {[%emt 0:01:55]} 57. gxh4 {[%emt 0:00:06]} Ke4 {[%emt 0:00:55]} 58. Rxf7 {[%emt 0:00:10]} Kd3 {[%emt 0:00:23]} 59. Rf8 {[%emt 0:00:10]} Kxc3 {[%emt 0:01:02]} 60. f7 {[%emt 0:00:18]} Kd4 {[%emt 0:00:20]} 61. Rb8 {[%emt 0:00:05]} Bxf7 {[%emt 0:00:10]} 62. Kxf7 {[%emt 0:00:05]} Ke5 {[%emt 0:00:02]} 63. Rxb5+ {[%emt 0:00:09]} Kf4 {[%emt 0:00:06]} 64. Kg6 {[%emt 0:00:09] Ke5} 1-0

[Event "XII Figueira da Foz Open 2018"]
[Site "Figueira da Foz"]
[Date "2018.10.30"]
[Round "2"]
[White "Pais, Bruno Miguel Dos Sa"]
[Black "Dong, Rafael"]
[Result "1-0"]
[ECO "A45"]
[WhiteElo "1836"]
[BlackElo "1360"]
[Annotator "NA"]
[PlyCount "61"]
[EventDate "2018.10.30"]
[EventType "swiss"]
[EventCountry "POR"]
[SourceTitle "playchess.com"]
[Source "ChessBase"]
[SourceQuality "1"]
[TimeControl "40/5400+30:1800+30"]

1. d4 {[%emt 0:00:00]} Nf6 {[%emt 0:00:00]} 2. g3 {[%emt 0:00:00]} e6 {[%emt 0:00:00]} 3. Bg2 {[%emt 0:00:00]} c5 {[%emt 0:00:02]} 4. Nf3 {[%emt 0:01:20]} d5 {[%emt 0:00:29]} 5. O-O {[%emt 0:00:23]} Nc6 {[%emt 0:00:24]} 6. e3 {[%emt 0:07:17]} Bd6 {[%emt 0:01:23]} 7. Nbd2 {[%emt 0:01:10]} b6 {[%emt 0:00:12]} 8. c4 {[%emt 0:01:41]} cxd4 {[%emt 0:01:46]} 9. Nxd4 {[%emt 0:04:03]} Nxd4 {[%emt 0:01:18]} 10. exd4 {[%emt 0:00:01]} Bb7 {[%emt 0:00:25]} 11. Qa4+ {[%emt 0:05:07]} Qd7 {[%emt 0:01:11]} 12. Qxd7+ {[%emt 0:00:04]} Nxd7 {[%emt 0:00:56]} 13. cxd5 {[%emt 0:00:03]} Bxd5 {[%emt 0:01:30]} 14. Bxd5 {[%emt 0:00:03]} exd5 {[%emt 0:00:55]} 15. Re1+ {[%emt 0:00:03]} Kd8 {[%emt 0:01:13]} 16. Nf1 {[%emt 0:00:18]} b5 {[%emt 0:02:36]} 17. Ne3 {[%emt 0:02:13]} Nb6 {[%emt 0:00:13]} 18. Nf5 {[%emt 0:01:07]} Bb4 {[%emt 0:02:22]} 19. Re2 {[%emt 0:05:37]} g6 {[%emt 0:01:04]} 20. Ne3 {[%emt 0:02:19]} Re8 {[%emt 0:00:46]} 21. a3 {[%emt 0:03:13]} Bf8 {[%emt 0:02:10]} 22. b3 {[%emt 0:02:49]} Bg7 {[%emt 0:00:26]} 23. Bb2 {[%emt 0:00:06]} Rc8 {[%emt 0:08:38]} 24. Rae1 {[%emt 0:01:48]} a5 {[%emt 0:02:17]} 25. Kf1 {[%emt 0:05:21]} a4 {[%emt 0:01:23]} 26. bxa4 {[%emt 0:01:05]} bxa4 {[%emt 0:02:52]} 27. Rb1 {[%emt 0:11:34]} Nc4 {[%emt 0:03:30]} 28. Nxd5 {[%emt 0:01:54]} Rxe2 {[%emt 0:01:24]} 29. Kxe2 {[%emt 0:00:01]} Nxb2 {[%emt 0:00:24]} 30. Rxb2 {[%emt 0:00:01]} Bxd4 {[%emt 0:00:02]} 31. Rd2 {[%emt 0:02:38]} 1-0